[Event "Charlotte Fall IM-C 2023"]
[Site "Charlotte"]
[Date "2023.11.18"]
[Round "2.2"]
[White "Bhagat Kush"]
[Black "Nandhakumar, Vaseegaran"]
[Result "0-1"]
[ECO "E73"]
[WhiteElo "2209"]
[BlackElo "2177"]
[Annotator "ChessBase"]
[PlyCount "112"]
[EventDate "2023.11.17"]
[EventType "tourn"]
[EventCountry "USA"]
[SourceTitle "playchess.com"]
[Source "ChessBase"]
[SourceQuality "1"]
[TimeControl "5400+30"]

1. d4 {[%emt 0:05:28]} g6 {[%emt 0:00:13]} 2. c4 {[%emt 0:01:04]} Nf6 {[%emt 0:01:05]} 3. Nc3 {[%emt 0:00:08]} Bg7 {[%emt 0:00:18]} 4. e4 {[%emt 0:00:07]} d6 {[%emt 0:00:04]} 5. Be2 {[%emt 0:00:12]} O-O {[%emt 0:00:03]} 6. Be3 {[%emt 0:00:09]} c5 {[%emt 0:00:15]} 7. d5 {[%emt 0:00:32]} e6 {[%emt 0:00:07]} 8. Nf3 {[%emt 0:00:19]} exd5 {[%emt 0:00:07]} 9. cxd5 {[%emt 0:00:05]} Bg4 {[%emt 0:01:59]} 10. Nd2 {[%emt 0:00:42]} Bxe2 {[%emt 0:00:17]} 11. Qxe2 {[%emt 0:00:09]} Re8 {[%emt 0:00:19]} 12. O-O {[%emt 0:00:38]} Nbd7 {[%emt 0:01:17]} 13. f4 {[%emt 0:20:49]} b5 {[%emt 0:09:03]} 14. Nxb5 {[%emt 0:15:20]} Nxe4 {[%emt 0:00:58]} 15. Qd3 {[%emt 0:01:09]} Ndf6 {[%emt 0:11:03]} 16. Rfe1 {[%emt 0:11:29]} Nxd2 {[%emt 0:06:45]} 17. Bxd2 {[%emt 0:03:23]} Qb6 {[%emt 0:01:29]} 18. Kh1 {[%emt 0:01:50]} Ng4 {[%emt 0:02:10]} 19. Rf1 {[%emt 0:14:06]} c4 {[%emt 0:02:13]} 20. Qf3 {[%emt 0:01:10]} Qxb5 {[%emt 0:00:29]} 21. Qxg4 {[%emt 0:00:06]} Qxb2 {[%emt 0:00:12]} 22. Rad1 {[%emt 0:01:41]} f5 {[%emt 0:03:19]} 23. Qf3 {[%emt 0:04:26]} c3 {[%emt 0:00:38]} 24. Bc1 {[%emt 0:00:44]} Qxa2 {[%emt 0:00:26]} 25. Rde1 {[%emt 0:00:27]} c2 {[%emt 0:01:50]} 26. h4 {[%emt 0:01:36]} Qc4 {[%emt 0:03:26]} 27. h5 {[%emt 0:03:08]} a5 {[%emt 0:13:00]} 28. Qg3 {[%emt 0:04:36]} Qc3 {[%emt 0:00:36]} 29. Qf2 {[%emt 0:03:07]} a4 {[%emt 0:02:42]} 30. hxg6 {[%emt 0:01:46]} hxg6 {[%emt 0:00:10]} 31. Re2 {[%emt 0:00:44]} Bd4 {[%emt 0:16:59]} 32. Rxc2 {[%emt 0:00:33]} Bxf2 {[%emt 0:00:19]} 33. Rxc3 {[%emt 0:00:05]} Re1 {[%emt 0:01:38]} 34. Rxe1 {[%emt 0:00:01]} Bxe1 {[%emt 0:00:01]} 35. Rh3 {[%emt 0:02:17]} Rb8 {[%emt 0:01:26]} 36. Ba3 {[%emt 0:02:24]} Rb1 {[%emt 0:02:56]} 37. Kh2 {[%emt 0:00:57]} Bb4 {[%emt 0:00:03]} 38. Rf3 {[%emt 0:01:02]} Kf7 {[%emt 0:00:37]} 39. g3 {[%emt 0:00:10]} Bxa3 {[%emt 0:00:17]} 40. Rxa3 {[%emt 0:00:03]} Rb4 {[%emt 0:00:01]} 41. Kh3 {[%emt 0:01:01]} Kf6 {[%emt 0:00:50]} 42. Ra2 {[%emt 0:01:11]} Rd4 {[%emt 0:00:14]} 43. Kg2 {[%emt 0:00:07]} g5 {[%emt 0:00:36]} 44. Kf3 {[%emt 0:00:54]} Rb4 {[%emt 0:01:17]} 45. Ra1 {[%emt 0:00:29]} Rb3+ {[%emt 0:00:16]} 46. Kf2 {[%emt 0:00:19]} a3 {[%emt 0:00:01]} 47. Re1 {[%emt 0:00:38]} a2 {[%emt 0:00:10]} 48. Ra1 {[%emt 0:00:11]} Rb2+ {[%emt 0:00:16]} 49. Ke3 {[%emt 0:00:35]} Kg6 {[%emt 0:05:00]} 50. fxg5 {[%emt 0:00:28]} Kxg5 {[%emt 0:00:17]} 51. Kf3 {[%emt 0:00:11]} Rb3+ {[%emt 0:00:00]} 52. Kf2 {[%emt 0:00:11]} Ra3 {[%emt 0:00:02]} 53. Kg2 {[%emt 0:00:22]} Kg4 {[%emt 0:00:03]} 54. Kh2 {[%emt 0:00:51]} Ra4 {[%emt 0:00:08]} 55. Kg2 {[%emt 0:00:05]} Ra5 {[%emt 0:00:02]} 56. Kf2 {[%emt 0:00:57]} Ra3 {[%emt 0:00:02]} 0-1

[Event "Charlotte Fall IM-C 2023"]
[Site "Charlotte"]
[Date "2023.11.18"]
[Round "2.3"]
[White "Martin Del Campo Cardenas, Roberto Abel"]
[Black "Graif, William"]
[Result "0-1"]
[ECO "B31"]
[WhiteElo "2212"]
[BlackElo "2289"]
[Annotator "RC"]
[PlyCount "110"]
[EventDate "2023.11.17"]
[EventType "tourn"]
[EventCountry "USA"]
[SourceTitle "playchess.com"]
[Source "ChessBase"]
[SourceQuality "1"]
[TimeControl "5400+30"]

1. e4 {[%emt 0:06:28]} c5 {[%emt 0:00:08]} 2. Nf3 {[%emt 0:01:35]} Nc6 {[%emt 0:00:16]} 3. Bb5 {[%emt 0:02:30]} g6 {[%emt 0:00:20]} 4. O-O {[%emt 0:00:11]} Bg7 {[%emt 0:00:05]} 5. Re1 {[%emt 0:00:28]} Nf6 {[%emt 0:00:41]} 6. e5 {[%emt 0:02:43]} Nd5 {[%emt 0:00:14]} 7. Nc3 {[%emt 0:01:08]} Nc7 {[%emt 0:00:14]} 8. Bxc6 {[%emt 0:00:57]} dxc6 {[%emt 0:00:05]} 9. Ne4 {[%emt 0:06:54]} Ne6 {[%emt 0:00:09]} 10. d3 {[%emt 0:00:56]} h6 {[%emt 0:00:15]} 11. Be3 {[%emt 0:05:07]} b6 {[%emt 0:00:30]} 12. Qd2 {[%emt 0:00:12]} Qc7 {[%emt 0:12:00]} 13. Rab1 {[%emt 0:16:02]} g5 {[%emt 0:05:21]} 14. h3 {[%emt 0:06:41]} Bxe5 {[%emt 0:02:08]} 15. Nxe5 {[%emt 0:03:30]} Qxe5 {[%emt 0:00:08]} 16. Qd1 {[%emt 0:03:31]} Qf5 {[%emt 0:19:58]} 17. Qh5 {[%emt 0:10:03]} Ng7 {[%emt 0:16:00]} 18. Qe2 {[%emt 0:02:46]} Qg6 {[%emt 0:10:39]} 19. Bd2 {[%emt 0:05:17]} O-O {[%emt 0:05:24]} 20. a4 {[%emt 0:08:06]} a5 {[%emt 0:03:03]} 21. Bc3 {[%emt 0:01:51]} f6 {[%emt 0:02:24]} 22. Nd2 {[%emt 0:06:48]} e5 {[%emt 0:00:31]} 23. Nc4 {[%emt 0:01:45]} Rb8 {[%emt 0:00:25]} 24. Qe4 {[%emt 0:00:25]} Qxe4 {[%emt 0:11:20]} 25. dxe4 {[%emt 0:00:22]} Ne6 {[%emt 0:01:24]} 26. Red1 {[%emt 0:01:44]} Nd4 {[%emt 0:04:35]} 27. Rd2 {[%emt 0:00:05]} Be6 {[%emt 0:01:40]} 28. b3 {[%emt 0:00:55]} h5 {[%emt 0:02:37]} 29. f3 {[%emt 0:02:14]} Kf7 {[%emt 0:00:47]} 30. Kf2 {[%emt 0:00:47]} Ke7 {[%emt 0:01:18]} 31. Rb2 {[%emt 0:01:15]} g4 {[%emt 0:00:42]} 32. hxg4 {[%emt 0:00:57]} hxg4 {[%emt 0:00:02]} 33. f4 {[%emt 0:00:10]} exf4 {[%emt 0:00:36]} 34. Bxd4 {[%emt 0:00:03]} cxd4 {[%emt 0:00:04]} 35. Rxd4 {[%emt 0:00:02]} c5 {[%emt 0:00:55]} 36. Rd1 {[%emt 0:00:27]} Rfd8 {[%emt 0:00:13]} 37. Rbb1 {[%emt 0:01:30]} Rxd1 {[%emt 0:00:59]} 38. Rxd1 {[%emt 0:00:03]} Bxc4 {[%emt 0:00:20]} 39. bxc4 {[%emt 0:00:03]} Rd8 {[%emt 0:00:51]} 40. Rd5 {[%emt 0:00:06]} Rd7 {[%emt 0:00:31]} 41. Ke2 {[%emt 0:00:31]} Rd6 {[%emt 0:00:31]} 42. c3 {[%emt 0:00:29]} Re6 {[%emt 0:00:20]} 43. Kd3 {[%emt 0:01:36]} Re5 {[%emt 0:00:16]} 44. g3 {[%emt 0:00:38]} fxg3 {[%emt 0:00:42]} 45. Ke3 {[%emt 0:01:19]} Rxd5 {[%emt 0:00:39]} 46. exd5 {[%emt 0:01:42]} f5 {[%emt 0:00:10]} 47. Ke2 {[%emt 0:00:23]} f4 {[%emt 0:00:09]} 48. Kf1 {[%emt 0:00:06]} f3 {[%emt 0:00:04]} 49. Kg1 {[%emt 0:00:02]} Kf6 {[%emt 0:00:15]} 50. Kf1 {[%emt 0:00:04]} Ke5 {[%emt 0:00:10]} 51. Kg1 {[%emt 0:00:03]} g2 {[%emt 0:01:47]} 52. Kf2 {[%emt 0:00:06]} Kf5 {[%emt 0:00:23]} 53. Kg1 {[%emt 0:00:37]} Kf4 {[%emt 0:00:15]} 54. Kf2 {[%emt 0:00:03]} g3+ {[%emt 0:00:06]} 55. Kg1 {[%emt 0:00:04]} Kg4 {[%emt 0:00:17]} 0-1

[Event "Charlotte Fall IM-C 2023"]
[Site "Charlotte"]
[Date "2023.11.18"]
[Round "2.4"]
[White "Lima, Darcy"]
[Black "Fierro Baquero, Martha L."]
[Result "1/2-1/2"]
[ECO "A73"]
[WhiteElo "2405"]
[BlackElo "2306"]
[Annotator "RC"]
[PlyCount "69"]
[EventDate "2023.11.17"]
[EventType "tourn"]
[EventCountry "USA"]
[SourceTitle "playchess.com"]
[Source "ChessBase"]
[SourceQuality "1"]
[TimeControl "5400+30"]

1. d4 {[%emt 0:06:15]} g6 {[%emt 0:00:06]} 2. c4 {[%emt 0:00:40]} Bg7 {[%emt 0:00:05]} 3. e4 {[%emt 0:00:30]} d6 {[%emt 0:00:13]} 4. Be2 {[%emt 0:02:25]} c5 {[%emt 0:00:28]} 5. d5 {[%emt 0:03:39]} Nf6 {[%emt 0:00:06]} 6. Nc3 {[%emt 0:00:03]} O-O {[%emt 0:00:06]} 7. Nf3 {[%emt 0:00:19]} e6 {[%emt 0:00:49]} 8. O-O {[%emt 0:02:26]} exd5 {[%emt 0:00:04]} 9. cxd5 {[%emt 0:00:43]} Bg4 {[%emt 0:00:36]} 10. h3 {[%emt 0:00:12]} Bxf3 {[%emt 0:00:08]} 11. Bxf3 {[%emt 0:00:06]} Na6 {[%emt 0:00:46]} 12. Bf4 {[%emt 0:01:05]} Nc7 {[%emt 0:00:14]} 13. a4 {[%emt 0:00:37]} Qe7 {[%emt 0:01:46]} 14. e5 {[%emt 0:22:27]} Nfe8 {[%emt 0:04:39]} 15. exd6 {[%emt 0:00:45]} Nxd6 {[%emt 0:00:32]} 16. Re1 {[%emt 0:00:09]} Qd7 {[%emt 0:04:21]} 17. Qb3 {[%emt 0:01:44]} b6 {[%emt 0:22:29]} 18. a5 {[%emt 0:15:42]} Rab8 {[%emt 0:04:11]} 19. axb6 {[%emt 0:01:13]} Rxb6 {[%emt 0:04:33]} 20. Qa4 {[%emt 0:06:35]} Qd8 {[%emt 0:03:31]} 21. Bxd6 {[%emt 0:09:51]} Qxd6 {[%emt 0:00:06]} 22. Ne4 {[%emt 0:00:03]} Qd8 {[%emt 0:05:53]} 23. Nxc5 {[%emt 0:00:39]} Rxb2 {[%emt 0:02:09]} 24. Nd7 {[%emt 0:05:52]} Re8 {[%emt 0:03:55]} 25. Rxe8+ {[%emt 0:00:05]} Qxe8 {[%emt 0:04:52]} 26. Rc1 {[%emt 0:03:58]} Nb5 {[%emt 0:03:43]} 27. Nc5 {[%emt 0:00:02]} Bh6 {[%emt 0:07:40]} 28. Rf1 {[%emt 0:07:41]} Rxf2 {[%emt 0:06:02]} 29. Ne4 {[%emt 0:00:53]} Rxf1+ {[%emt 0:00:36]} 30. Kxf1 {[%emt 0:00:01]} Qb8 {[%emt 0:01:17]} 31. Nf6+ {[%emt 0:00:45]} Kh8 {[%emt 0:01:54]} 32. Nd7 {[%emt 0:01:20]} Qc7 {[%emt 0:09:00]} 33. Qxb5 {[%emt 0:00:35]} Qc1+ {[%emt 0:00:02]} 34. Ke2 {[%emt 0:00:58]} Qe3+ {[%emt 0:00:06]} 35. Kf1 {[%emt 0:00:03]} 1/2-1/2

[Event "Charlotte Fall IM-C 2023"]
[Site "Charlotte"]
[Date "2023.11.18"]
[Round "2.5"]
[White "Guo, Ethan"]
[Black "Wang, Isaac"]
[Result "0-1"]
[ECO "B41"]
[WhiteElo "2026"]
[BlackElo "2377"]
[Annotator "RC"]
[PlyCount "94"]
[EventDate "2023.11.17"]
[EventType "tourn"]
[EventCountry "USA"]
[SourceTitle "playchess.com"]
[Source "ChessBase"]
[SourceQuality "1"]
[TimeControl "5400+30"]

1. e4 {[%emt 0:00:01]} c5 {[%emt 0:01:00]} 2. Nf3 {[%emt 0:00:07]} e6 {[%emt 0:00:05]} 3. d4 {[%emt 0:00:07]} cxd4 {[%emt 0:00:10]} 4. Nxd4 {[%emt 0:00:11]} a6 {[%emt 0:00:04]} 5. g3 {[%emt 0:00:11]} Nf6 {[%emt 0:00:52]} 6. Bg2 {[%emt 0:00:07]} d6 {[%emt 0:00:10]} 7. O-O {[%emt 0:00:09]} Bd7 {[%emt 0:00:42]} 8. Be3 {[%emt 0:00:51]} Nc6 {[%emt 0:04:01]} 9. a4 {[%emt 0:02:30]} h5 {[%emt 0:03:34]} 10. h3 {[%emt 0:02:15]} Be7 {[%emt 0:12:28]} 11. Nc3 {[%emt 0:02:03]} Ne5 {[%emt 0:03:48]} 12. b3 {[%emt 0:03:06]} Rc8 {[%emt 0:02:12]} 13. Nce2 {[%emt 0:01:41]} d5 {[%emt 0:07:11]} 14. exd5 {[%emt 0:04:41]} Nxd5 {[%emt 0:01:38]} 15. Bd2 {[%emt 0:02:25]} Nc6 {[%emt 0:06:32]} 16. Nxc6 {[%emt 0:04:26]} Bxc6 {[%emt 0:00:17]} 17. Nd4 {[%emt 0:00:31]} Bf6 {[%emt 0:04:19]} 18. Nxc6 {[%emt 0:00:40]} bxc6 {[%emt 0:00:12]} 19. Rb1 {[%emt 0:00:54]} h4 {[%emt 0:03:45]} 20. g4 {[%emt 0:01:12]} O-O {[%emt 0:01:41]} 21. Qe2 {[%emt 0:03:05]} a5 {[%emt 0:02:01]} 22. Qe1 {[%emt 0:02:58]} Ra8 {[%emt 0:06:08]} 23. c4 {[%emt 0:05:11]} Ne7 {[%emt 0:03:24]} 24. Rd1 {[%emt 0:01:51]} Qb6 {[%emt 0:03:16]} 25. Qe3 {[%emt 0:03:31]} Bd4 {[%emt 0:01:30]} 26. Qe4 {[%emt 0:00:28]} c5 {[%emt 0:05:58]} 27. Bg5 {[%emt 0:09:58]} Ng6 {[%emt 0:00:50]} 28. Qc2 {[%emt 0:05:17]} Rab8 {[%emt 0:01:43]} 29. Rb1 {[%emt 0:00:44]} Qc7 {[%emt 0:05:49]} 30. Qe4 {[%emt 0:01:32]} Rb6 {[%emt 0:01:50]} 31. Bd2 {[%emt 0:01:31]} Rd6 {[%emt 0:03:09]} 32. Qb7 {[%emt 0:02:01]} Qd8 {[%emt 0:03:24]} 33. Qb5 {[%emt 0:05:09]} Bxf2+ {[%emt 0:03:46]} 34. Rxf2 {[%emt 0:00:08]} Rxd2 {[%emt 0:00:05]} 35. Qxc5 {[%emt 0:00:29]} Qd3 {[%emt 0:01:33]} 36. Rb2 {[%emt 0:02:47]} Rxb2 {[%emt 0:04:22]} 37. Rxb2 {[%emt 0:00:12]} Nf4 {[%emt 0:00:06]} 38. Qe5 {[%emt 0:01:49]} Qd1+ {[%emt 0:01:28]} 39. Kh2 {[%emt 0:00:22]} Nd3 {[%emt 0:00:04]} 40. Qc3 {[%emt 0:00:43]} Nxb2 {[%emt 0:00:07]} 41. Qxb2 {[%emt 0:00:05]} Rd8 {[%emt 0:00:30]} 42. Qc3 {[%emt 0:01:09]} Rd2 {[%emt 0:00:45]} 43. Qxa5 {[%emt 0:00:18]} Qe2 {[%emt 0:01:24]} 44. Qa8+ {[%emt 0:00:06]} Kh7 {[%emt 0:00:07]} 45. g5 {[%emt 0:01:37]} Qe3 {[%emt 0:01:01]} 46. g6+ {[%emt 0:01:33]} fxg6 {[%emt 0:00:26]} 47. Qb8 {[%emt 0:00:14]} Qf3 {[%emt 0:00:37]} 0-1

[Event "Charlotte Fall IM-C 2023"]
[Site "Charlotte"]
[Date "2023.11.18"]
[Round "3.1"]
[White "Wang, Isaac"]
[Black "Vemparala, Nikash"]
[Result "1/2-1/2"]
[ECO "D37"]
[WhiteElo "2377"]
[BlackElo "2257"]
[Annotator "RC"]
[PlyCount "64"]
[EventDate "2023.11.17"]
[EventType "tourn"]
[EventCountry "USA"]
[SourceTitle "playchess.com"]
[Source "ChessBase"]
[SourceQuality "1"]
[TimeControl "5400+30"]

1. d4 {[%emt 0:00:19]} d5 {[%emt 0:00:42]} 2. c4 {[%emt 0:00:03]} e6 {[%emt 0:00:06]} 3. Nc3 {[%emt 0:00:10]} h6 {[%emt 0:00:06]} 4. Nf3 {[%emt 0:00:45]} Nf6 {[%emt 0:00:06]} 5. g3 {[%emt 0:00:46]} Nc6 {[%emt 0:00:23]} 6. Bg2 {[%emt 0:01:17]} Bd6 {[%emt 0:00:06]} 7. O-O {[%emt 0:00:48]} O-O {[%emt 0:00:05]} 8. b3 {[%emt 0:02:25]} Re8 {[%emt 0:00:10]} 9. Rb1 {[%emt 0:04:43]} b6 {[%emt 0:02:51]} 10. Bb2 {[%emt 0:02:26]} Bb7 {[%emt 0:00:53]} 11. Rc1 {[%emt 0:04:32]} dxc4 {[%emt 0:05:17]} 12. bxc4 {[%emt 0:00:38]} Na5 {[%emt 0:00:09]} 13. Qd3 {[%emt 0:13:30]} c5 {[%emt 0:07:57]} 14. Rfd1 {[%emt 0:12:17]} cxd4 {[%emt 0:19:38]} 15. Qxd4 {[%emt 0:00:31]} Bc5 {[%emt 0:01:05]} 16. Qf4 {[%emt 0:13:24]} Qe7 {[%emt 0:09:17]} 17. Na4 {[%emt 0:09:14]} Ba3 {[%emt 0:14:37]} 18. Bxa3 {[%emt 0:01:54]} Qxa3 {[%emt 0:00:06]} 19. Nc3 {[%emt 0:01:19]} Qc5 {[%emt 0:03:23]} 20. Ne5 {[%emt 0:04:18]} Bxg2 {[%emt 0:03:17]} 21. Kxg2 {[%emt 0:00:07]} Rad8 {[%emt 0:04:52]} 22. Nb5 {[%emt 0:10:56]} Rxd1 {[%emt 0:04:35]} 23. Rxd1 {[%emt 0:00:07]} Nxc4 {[%emt 0:00:58]} 24. Qxc4 {[%emt 0:00:38]} Qxe5 {[%emt 0:00:02]} 25. Nxa7 {[%emt 0:00:50]} Ra8 {[%emt 0:01:04]} 26. Nb5 {[%emt 0:04:15]} Qe4+ {[%emt 0:00:24]} 27. Qxe4 {[%emt 0:00:08]} Nxe4 {[%emt 0:00:02]} 28. a3 {[%emt 0:01:57]} Ra5 {[%emt 0:02:25]} 29. Rb1 {[%emt 0:00:39]} Kf8 {[%emt 0:03:23]} 30. Rb4 {[%emt 0:01:01]} Nc5 {[%emt 0:00:53]} 31. Nd6 {[%emt 0:01:49]} Rxa3 {[%emt 0:03:41]} 32. Rxb6 {[%emt 0:00:06]} Ke7 {[%emt 0:00:35]} 1/2-1/2

[Event "Charlotte Fall IM-C 2023"]
[Site "Charlotte"]
[Date "2023.11.18"]
[Round "3.2"]
[White "Fierro Baquero, Martha L."]
[Black "Guo, Ethan"]
[Result "1/2-1/2"]
[ECO "B13"]
[WhiteElo "2306"]
[BlackElo "2026"]
[Annotator "RC"]
[PlyCount "69"]
[EventDate "2023.11.17"]
[EventType "tourn"]
[EventCountry "USA"]
[SourceTitle "playchess.com"]
[Source "ChessBase"]
[SourceQuality "1"]
[TimeControl "5400+30"]

1. c4 {[%emt 0:05:28]} c6 {[%emt 0:00:06]} 2. e4 {[%emt 0:00:32]} d5 {[%emt 0:00:05]} 3. exd5 {[%emt 0:00:21]} cxd5 {[%emt 0:00:06]} 4. d4 {[%emt 0:00:04]} Nf6 {[%emt 0:01:32]} 5. Nc3 {[%emt 0:00:08]} Nc6 {[%emt 0:01:28]} 6. Nf3 {[%emt 0:03:15]} Bg4 {[%emt 0:19:00]} 7. cxd5 {[%emt 0:00:05]} Nxd5 {[%emt 0:00:16]} 8. Qb3 {[%emt 0:01:05]} Bxf3 {[%emt 0:03:15]} 9. gxf3 {[%emt 0:00:55]} e6 {[%emt 0:03:02]} 10. Qxb7 {[%emt 0:03:58]} Nxd4 {[%emt 0:00:18]} 11. Bb5+ {[%emt 0:02:24]} Nxb5 {[%emt 0:00:08]} 12. Qc6+ {[%emt 0:00:06]} Ke7 {[%emt 0:00:53]} 13. Qxb5 {[%emt 0:01:06]} Nxc3 {[%emt 0:02:59]} 14. bxc3 {[%emt 0:00:06]} Qd7 {[%emt 0:00:23]} 15. c4 {[%emt 0:12:50]} a6 {[%emt 0:04:56]} 16. Qb3 {[%emt 0:04:45]} f6 {[%emt 0:01:25]} 17. Be3 {[%emt 0:02:25]} Kf7 {[%emt 0:01:31]} 18. Rb1 {[%emt 0:01:13]} Be7 {[%emt 0:01:21]} 19. Ke2 {[%emt 0:08:08]} Rab8 {[%emt 0:57:16]} 20. Qc2 {[%emt 0:19:44]} Qc6 {[%emt 0:00:00]} 21. Rb3 {[%emt 0:00:16]} a5 {[%emt 0:00:00]} 22. Rhb1 {[%emt 0:00:05]} Rbc8 {[%emt 0:00:00]} 23. c5 {[%emt 0:04:41]} Qa6+ {[%emt 0:00:00]} 24. Ke1 {[%emt 0:02:37]} Qc6 {[%emt 0:00:00]} 25. Ke2 {[%emt 0:03:10]} Qa6+ {[%emt 0:00:00]} 26. Qd3 {[%emt 0:07:46]} Qxd3+ {[%emt 0:00:00]} 27. Rxd3 {[%emt 0:01:08]} Bxc5 {[%emt 0:00:00]} 28. Rd7+ {[%emt 0:00:04]} Kg6 {[%emt 0:00:00]} 29. Rg1+ {[%emt 0:00:25]} Kf5 {[%emt 0:00:00]} 30. Rgxg7 {[%emt 0:00:48]} Bxe3 {[%emt 0:00:00]} 31. fxe3 {[%emt 0:00:06]} Rc2+ {[%emt 0:00:00]} 32. Rd2 {[%emt 0:00:51]} Rxd2+ {[%emt 0:00:00]} 33. Kxd2 {[%emt 0:00:04]} Rd8+ {[%emt 0:00:00]} 34. Ke2 {[%emt 0:05:46]} Rb8 {[%emt 0:00:00]} 35. Rxh7 {[%emt 0:00:44]} 1/2-1/2

[Event "Charlotte Fall IM-C 2023"]
[Site "Charlotte"]
[Date "2023.11.18"]
[Round "3.3"]
[White "Graif, William"]
[Black "Lima, Darcy"]
[Result "1-0"]
[ECO "C64"]
[WhiteElo "2289"]
[BlackElo "2405"]
[Annotator "RC"]
[PlyCount "41"]
[EventDate "2023.11.17"]
[EventType "tourn"]
[EventCountry "USA"]
[SourceTitle "playchess.com"]
[Source "ChessBase"]
[SourceQuality "1"]
[TimeControl "5400+30"]

1. e4 {[%emt 0:03:58]} e5 {[%emt 0:00:51]} 2. Nf3 {[%emt 0:00:08]} Nc6 {[%emt 0:00:06]} 3. Bb5 {[%emt 0:00:16]} Bc5 {[%emt 0:04:15]} 4. c3 {[%emt 0:00:39]} Nf6 {[%emt 0:00:07]} 5. d4 {[%emt 0:02:07]} Bb6 {[%emt 0:00:06]} 6. Nxe5 {[%emt 0:01:21]} Nxe5 {[%emt 0:00:13]} 7. dxe5 {[%emt 0:00:04]} Nxe4 {[%emt 0:00:06]} 8. Qg4 {[%emt 0:01:43]} Bxf2+ {[%emt 0:00:11]} 9. Ke2 {[%emt 0:00:13]} Qh4 {[%emt 0:00:10]} 10. Qxg7 {[%emt 0:00:16]} Rf8 {[%emt 0:00:36]} 11. Bh6 {[%emt 0:00:23]} Bc5 {[%emt 0:00:42]} 12. Nd2 {[%emt 0:00:39]} Qf2+ {[%emt 0:12:40]} 13. Kd1 {[%emt 0:00:21]} Nxd2 {[%emt 0:00:27]} 14. Bxd2 {[%emt 0:01:00]} Qf5 {[%emt 0:22:39]} 15. Bh6 {[%emt 0:23:09]} c6 {[%emt 0:01:03]} 16. Rf1 {[%emt 0:06:32]} Qe4 {[%emt 0:00:01]} 17. Rf4 {[%emt 0:03:54]} Qe3 {[%emt 0:04:19]} 18. Rf3 {[%emt 0:12:14]} Qg1+ {[%emt 0:03:33]} 19. Rf1 {[%emt 0:07:38]} Qxh2 {[%emt 0:00:09]} 20. Kd2 {[%emt 0:05:13]} Qh4 {[%emt 0:00:51]} 21. Bg5 {[%emt 0:02:49]} 1-0

[Event "Charlotte Fall IM-C 2023"]
[Site "Charlotte"]
[Date "2023.11.18"]
[Round "3.4"]
[White "Nandhakumar, Vaseegaran"]
[Black "Martin Del Campo Cardenas, Roberto Abel"]
[Result "1/2-1/2"]
[ECO "A01"]
[WhiteElo "2177"]
[BlackElo "2212"]
[Annotator "RC"]
[PlyCount "55"]
[EventDate "2023.11.17"]
[EventType "tourn"]
[EventCountry "USA"]
[SourceTitle "playchess.com"]
[Source "ChessBase"]
[SourceQuality "1"]
[TimeControl "5400+30"]

1. b3 {[%emt 0:00:01]} e5 {[%emt 0:01:17]} 2. Bb2 {[%emt 0:00:05]} Nc6 {[%emt 0:00:15]} 3. c4 {[%emt 0:00:05]} Nf6 {[%emt 0:04:44]} 4. e3 {[%emt 0:01:04]} Be7 {[%emt 0:06:46]} 5. Nf3 {[%emt 0:00:56]} e4 {[%emt 0:03:29]} 6. Nd4 {[%emt 0:00:07]} Nxd4 {[%emt 0:02:42]} 7. Bxd4 {[%emt 0:00:07]} O-O {[%emt 0:00:34]} 8. g4 {[%emt 0:07:16]} d5 {[%emt 0:13:48]} 9. g5 {[%emt 0:02:05]} Ne8 {[%emt 0:01:06]} 10. cxd5 {[%emt 0:01:38]} Bxg5 {[%emt 0:02:43]} 11. Nc3 {[%emt 0:02:17]} Bf6 {[%emt 0:00:47]} 12. Bc5 {[%emt 0:06:44]} Be7 {[%emt 0:02:21]} 13. Bxe7 {[%emt 0:00:55]} Qxe7 {[%emt 0:00:27]} 14. Qc2 {[%emt 0:01:07]} Bf5 {[%emt 0:02:56]} 15. d3 {[%emt 0:13:32]} Nf6 {[%emt 0:03:17]} 16. dxe4 {[%emt 0:06:43]} Nxe4 {[%emt 0:00:31]} 17. Bd3 {[%emt 0:00:43]} Qb4 {[%emt 0:07:16]} 18. Rc1 {[%emt 0:14:03]} Rfe8 {[%emt 0:13:44]} 19. O-O {[%emt 0:07:32]} Qxc3 {[%emt 0:17:14]} 20. Qxc3 {[%emt 0:00:12]} Nxc3 {[%emt 0:00:04]} 21. Rxc3 {[%emt 0:00:01]} Bxd3 {[%emt 0:02:07]} 22. Rxd3 {[%emt 0:00:02]} Rad8 {[%emt 0:00:07]} 23. Rc3 {[%emt 0:05:28]} Re7 {[%emt 0:01:23]} 24. Rfc1 {[%emt 0:00:11]} Rxd5 {[%emt 0:01:23]} 25. Rxc7 {[%emt 0:00:07]} Kf8 {[%emt 0:00:07]} 26. Rc8+ {[%emt 0:03:50]} Re8 {[%emt 0:00:27]} 27. R8c7 {[%emt 0:00:28]} Re7 {[%emt 0:00:06]} 28. Rc8+ {[%emt 0:00:06]} 1/2-1/2

[Event "Charlotte Fall IM-C 2023"]
[Site "Charlotte"]
[Date "2023.11.18"]
[Round "3.5"]
[White "Song, Ethan"]
[Black "Bhagat Kush"]
[Result "1/2-1/2"]
[ECO "B56"]
[WhiteElo "2176"]
[BlackElo "2209"]
[Annotator "RC"]
[PlyCount "47"]
[EventDate "2023.11.17"]
[EventType "tourn"]
[EventCountry "USA"]
[SourceTitle "playchess.com"]
[Source "ChessBase"]
[SourceQuality "1"]
[TimeControl "5400+30"]

1. e4 {[%emt 0:00:35]} c5 {[%emt 0:00:17]} 2. Nf3 {[%emt 0:00:05]} d6 {[%emt 0:00:05]} 3. d4 {[%emt 0:00:04]} cxd4 {[%emt 0:00:09]} 4. Nxd4 {[%emt 0:00:04]} Nf6 {[%emt 0:00:08]} 5. Nc3 {[%emt 0:00:06]} Nc6 {[%emt 0:00:05]} 6. f3 {[%emt 0:02:50]} e5 {[%emt 0:05:32]} 7. Nb3 {[%emt 0:02:05]} Be6 {[%emt 0:04:10]} 8. Nd5 {[%emt 0:04:31]} Be7 {[%emt 0:20:55]} 9. Be3 {[%emt 0:02:59]} O-O {[%emt 0:02:17]} 10. c4 {[%emt 0:04:15]} Rc8 {[%emt 0:05:12]} 11. Qd2 {[%emt 0:02:40]} Nd7 {[%emt 0:11:54]} 12. Be2 {[%emt 0:03:47]} Nc5 {[%emt 0:04:17]} 13. O-O {[%emt 0:01:12]} Bxd5 {[%emt 0:02:24]} 14. exd5 {[%emt 0:13:45]} Nxb3 {[%emt 0:02:32]} 15. axb3 {[%emt 0:00:04]} Nd4 {[%emt 0:00:40]} 16. Rxa7 {[%emt 0:03:04]} Qb6 {[%emt 0:04:19]} 17. Ra3 {[%emt 0:00:57]} Ra8 {[%emt 0:14:31]} 18. Kh1 {[%emt 0:02:45]} Rxa3 {[%emt 0:01:34]} 19. bxa3 {[%emt 0:00:34]} Qxb3 {[%emt 0:00:58]} 20. Bxd4 {[%emt 0:00:26]} exd4 {[%emt 0:00:06]} 21. Qxd4 {[%emt 0:00:06]} Qxa3 {[%emt 0:03:34]} 22. Qb6 {[%emt 0:01:23]} Bf6 {[%emt 0:02:30]} 23. f4 {[%emt 0:05:16]} Qb2 {[%emt 0:01:26]} 24. Qxb2 {[%emt 0:04:05]} 1/2-1/2